fUST/lending_fUST_20240311
["ID","MTS","AMOUNT","RATE_DAILY","PERIOD"]
[318164737,1710099032602,-153.651142,0.00024078,2]
[318164738,1710099032611,-201.004339,0.00024078,2]
[318164739,1710099032621,-153.0,0.00024078,2]
[318164740,1710099032631,-201.004339,0.00024078,2]
[318164741,1710099032642,-153.0,0.00024078,2]
[318164742,1710099032652,-153.0,0.00024078,2]
[318164743,1710099032661,-153.0,0.00024078,2]
[318164744,1710099032671,-153.0,0.00024078,2]
[318164745,1710099032681,-201.004339,0.00024078,2]
[318164746,1710099032690,-153.0,0.00024078,2]
[318164747,1710099032699,-153.0,0.00024078,2]
[318164748,1710099032709,-153.0,0.00024078,2]
[318164749,1710099032718,-153.0,0.00024078,2]
[318164750,1710099032728,-153.0,0.00024078,2]
[318164751,1710099032737,-3.87364395,0.00024078,2]
[318164771,1710099038312,-149.12635605,0.00024078,2]
[318164774,1710099038323,-153.0,0.00024078,2]
[318164776,1710099038333,-153.0,0.00024078,2]
[318164778,1710099038344,-153.0,0.00024078,2]
[318164780,1710099038355,-153.0,0.00024078,2]
[318164782,1710099038364,-169.0,0.00024164,2]
[318164784,1710099038374,-1000.0,0.00024396,7]
[318164785,1710099038384,-1000.0,0.00024396,7]
[318164787,1710099038394,-500.0,0.00024657,2]
[318164789,1710099038405,-500.0,0.0002468,2]
[318164791,1710099038417,-237.67741793,0.0002468,2]
[318164793,1710099038428,-500.0,0.0002468,2]
[318164796,1710099038439,-500.0,0.0002468,2]
[318164798,1710099038449,-238.65334591,0.0002468,2]
[318164799,1710099038459,-468.82439977,0.0002468,2]
[318164801,1710099038471,-500.0,0.0002468,2]
[318164803,1710099038481,-500.0,0.0002468,2]
[318164805,1710099038491,-300.0,0.0002468,2]
[318164807,1710099038502,-500.0,0.0002468,2]
[318164809,1710099038512,-500.0,0.0002468,2]
[318164812,1710099038522,-2374.20476533,0.00024681,2]
[318164814,1710099038535,-1564.84324406,0.00024681,2]
[318164816,1710099038548,-775.68953518,0.00024681,2]
[318164969,1710099040345,-9600.0,0.00024681,2]
[318164972,1710099040357,-1365.82188577,0.00024681,2]
[318164973,1710099040372,-704.87272718,0.00024681,2]
[318165303,1710099043519,-5131.49747786,0.00024681,2]
[318165752,1710099048155,-2215.19885531,0.00022871,2]
[318165754,1710099048165,-6933.30037196,0.00024681,2]
[318165756,1710099048175,-2000.0,0.000247,7]
[318165758,1710099048185,-775.83236687,0.00024819,2]
[318165760,1710099048194,-294.66295731,0.00024819,2]
[318165762,1710099048204,-580.13342155,0.00024819,2]
[318173879,1710100232612,-624.32879826,0.00022858,2]
[318173881,1710100232621,-691.32371893,0.00022859,2]
[318173883,1710100232632,-1236.91602553,0.00022859,2]
[318173886,1710100232666,-92.3204783,0.00022859,2]
[318173887,1710100232675,-524.47552081,0.00022859,2]
[318173888,1710100232684,-624.32879826,0.00022869,4]
[318173889,1710100232693,-359.58599104,0.00022903,2]
[318173890,1710100232724,-138.8337514,0.00022903,2]
[318173891,1710100232733,-176.787706,0.00022923,2]
[318173893,1710100232743,-300.0,0.00023,10]
[318173895,1710100232752,-273.667305,0.00023016,2]
[318173896,1710100232761,-326.65088458,0.00023819,2]
[318173897,1710100232862,-306.0,0.00024078,2]
[318173898,1710100232871,-450.3976375,0.00024078,2]
[318173899,1710100232881,-153.0,0.00024078,2]
[318173900,1710100232891,-153.0,0.00024078,2]
[318173901,1710100232900,-500.0,0.00024657,2]
[318173902,1710100232910,-2000.0,0.000247,7]
[318173903,1710100232919,-2000.0,0.0002471,7]
[318173904,1710100232928,-15645.51212113,0.00024721,2]
[318173905,1710100232939,-228.23007196,0.00024802,2]
[318173906,1710100232948,-151.0,0.00024802,2]
[318173907,1710100232967,-151.0,0.00024802,2]
[318173908,1710100232979,-123947.31117732,0.00024803,60]
[318173909,1710100232994,-779.36999409,0.00024803,60]
[318173930,1710100238599,-566.9562609,0.00024803,60]
[318173937,1710100238655,-1466.99330367,0.00024803,60]
[318174477,1710100243693,-151.0,0.00024802,2]
[318174479,1710100243702,-151.0,0.00024802,2]
[318174481,1710100243713,-2311.20289403,0.00024803,60]
[318174483,1710100243725,-4334.21062657,0.00024803,60]
[318174833,1710100246699,-238.18024038,0.00024802,2]
[318174835,1710100246708,-61.81975962,0.00024802,2]
[318175231,1710101438781,-682.55292822,0.00020983,2]
[318175232,1710101438793,-155.13496742,0.00020984,2]
[318175233,1710101438803,-176.41411874,0.00021,2]
[318175234,1710101438813,-619.15713446,0.00022,2]
[318175235,1710101438824,-211.10068525,0.00022703,2]
[318175236,1710101438834,-565.42246496,0.00022903,2]
[318175237,1710101438844,-166.13991415,0.00022903,2]
[318175238,1710101438854,-199.36789698,0.00022903,2]
[318175239,1710101438864,-244.212368,0.00023317,2]
[318175240,1710101438874,-2000.0,0.000247,7]
[318175241,1710101438885,-1033.90553713,0.00024703,2]
[318175242,1710101438896,-2000.0,0.0002471,7]
[318175243,1710101438907,-4301.8577015,0.00024711,2]
[318175244,1710101438917,-2000.0,0.0002472,7]
[318175245,1710101438928,-2000.0,0.0002473,8]
[318175246,1710101438938,-2000.0,0.0002474,8]
[318175247,1710101438949,-2000.0,0.0002475,8]
[318175248,1710101438959,-3019.92783399,0.0002476,8]
[318175249,1710101438973,-412.80292201,0.0002476,8]
[318175250,1710101438983,-621.10261512,0.00024779,2]
[318175264,1710101440740,-1152.61876498,0.00024779,2]
[318175265,1710101440750,-1524.56782846,0.00024801,2]
[318175266,1710101440759,-623.93583304,0.00024801,2]
[318175267,1710101440768,-395.60632814,0.00024802,2]
[318175268,1710101440777,-155.11633725,0.00024802,2]
[318175269,1710101440787,-1337.20118205,0.00024802,5]
[318175270,1710101440797,-524.12330327,0.00024802,2]
[318175271,1710101440807,-500.0,0.00024803,2]
[318175272,1710101440816,-500.0,0.00024803,2]
[318175273,1710101440827,-222.33042281,0.00024803,2]
[318175274,1710101440839,-277.66957719,0.00024803,2]
[318175275,1710101440850,-500.0,0.00024803,2]
[318175276,1710101440860,-502.63079284,0.00024803,2]
[318175277,1710101440870,-500.0,0.00024803,2]
[318175278,1710101440881,-500.0,0.00024803,2]
[318175279,1710101440891,-500.0,0.00024803,2]
[318175280,1710101440901,-2288.2191643,0.00024804,4]
[318175281,1710101440914,-711.7808357,0.00024804,4]
[318175282,1710101440935,-215.57961549,0.00024804,2]
[318175283,1710101440947,-155.31781498,0.00024804,2]
[318175284,1710101440958,-314.82032458,0.00024804,2]
[318175285,1710101440971,-846.79672194,0.00024804,2]
[318175286,1710101440983,-195.01782448,0.00024804,2]
[318175287,1710101440993,-238.84175043,0.00024804,2]
[318175288,1710101441005,-283.03069035,0.00024804,2]
[318175289,1710101441016,-178.31743187,0.00024804,2]
[318175290,1710101441026,-177.58919152,0.00024804,2]
[318175291,1710101441037,-171.0840051,0.00024804,2]
[318175292,1710101441049,-310.00769307,0.00024804,2]
[318175293,1710101441059,-298.36842984,0.00024804,2]
[318175294,1710101441069,-155.23936152,0.00024804,2]
[318175295,1710101441078,-500.0,0.00024805,2]
[318175296,1710101441088,-500.0,0.00024805,2]
[318175297,1710101441097,-500.0,0.00024805,2]
[318175298,1710101441107,-280.25317168,0.00024805,2]
[318175299,1710101441117,-155.11168041,0.00024806,2]
[318175300,1710101441126,-500.0,0.00024807,2]
[318175301,1710101441136,-500.0,0.00024807,2]
[318175302,1710101441146,-500.0,0.00024807,2]
[318175303,1710101441156,-500.0,0.00024807,2]
[318175304,1710101441167,-500.0,0.00024807,2]
[318175305,1710101441176,-500.0,0.00024807,2]
[318175306,1710101441186,-500.0,0.00024807,2]
[318175307,1710101441196,-589.73,0.00024807,2]
[318175308,1710101441207,-500.0,0.00024807,2]
[318175309,1710101441218,-500.0,0.00024807,2]
[318175310,1710101441227,-500.0,0.00024807,2]
[318175311,1710101441238,-500.0,0.00024807,2]
[318175312,1710101441248,-633.15,0.00024807,2]
[318175313,1710101441259,-500.0,0.00024807,2]
[318175314,1710101441270,-635.88,0.00024807,2]
[318175315,1710101441279,-500.0,0.00024807,2]
[318175316,1710101441290,-500.0,0.00024807,2]
[318175317,1710101441301,-547.04941593,0.00024807,2]
[318175318,1710101441312,-500.0,0.00024807,2]
[318175319,1710101441322,-170.49213285,0.00024807,2]
[318175320,1710101441333,-592.79053118,0.00024807,2]
[318175321,1710101441342,-154.15,0.0002481,2]
[318175322,1710101441351,-154.15,0.0002481,2]
[318175323,1710101441360,-154.15,0.0002481,2]
[318175324,1710101441369,-154.15,0.0002481,2]
[318175325,1710101441378,-154.15,0.0002481,2]
[318175326,1710101441387,-154.15,0.0002481,2]
[318175327,1710101441396,-500.0,0.0002481,2]
[318175328,1710101441405,-574.82897519,0.0002481,2]
[318175329,1710101441415,-500.0,0.0002481,2]
[318175330,1710101441425,-500.0,0.0002481,2]
[318175331,1710101441434,-383.8097595,0.0002481,2]
[318175332,1710101441443,-300.0,0.0002481,2]
[318175333,1710101441452,-500.0,0.0002481,2]
[318175334,1710101441462,-500.0,0.0002481,2]
[318175335,1710101441473,-14953.87662452,0.00024811,60]
[318175359,1710101443759,-2022.32581054,0.00024811,60]
[318175361,1710101443771,-2141.84461116,0.00024811,60]
[318175364,1710101443817,-302.00997705,0.00024811,60]
[318175365,1710101443829,-124959.33916296,0.00024811,60]
[318175400,1710101561288,4000.0,0.00027,120]
[318175403,1710102113865,2022.6,0.0002001,2]
[318175404,1710102155362,1337.20118205,0.0002001,5]
[318175405,1710102179407,696.68181585,0.0002001,5]
[318175407,1710102197374,696.68181585,0.0002001,5]
[318175408,1710102221356,696.68181585,0.0002001,5]
[318175409,1710102239424,696.68181585,0.0002001,5]
[318175410,1710102261361,696.68181585,0.0002001,5]
[318175411,1710102279397,696.68181585,0.0002001,5]
[318175412,1710102295430,696.68181585,0.0002001,5]
[318175413,1710102317386,696.68181585,0.0002001,5]
[318175414,1710102335365,696.68181585,0.0002001,5]
[318175415,1710102351370,696.68181585,0.0002001,5]
[318175417,1710102369377,686.410521,0.0002001,5]
[318181287,1710102632052,-162.54239094,0.00021356,2]
[318181289,1710102632062,-2678.7891154,0.00021357,2]
[318181291,1710102632078,-605.01801761,0.00021357,2]
[318181293,1710102632090,-1170.69166979,0.00021357,2]
[318181295,1710102632100,-24890.0,0.00021458,2]
[318181298,1710102632110,-176.530749,0.00021508,2]
[318181299,1710102632120,-176.730376,0.00021918,2]
[318181302,1710102632129,-167.0,0.00022,2]
[318181304,1710102632139,-249.615299,0.00022047,2]
[318181306,1710102632147,-167.0,0.00023014,2]
[318181308,1710102632157,-500.0,0.00023999,2]
[318181312,1710102632167,-500.0,0.00023999,2]
[318181314,1710102632176,-500.0,0.00023999,2]
[318181317,1710102632185,-500.0,0.00023999,2]
[318181320,1710102632195,-500.0,0.00023999,2]
[318181323,1710102632205,-372.4936063,0.00023999,2]
[318181326,1710102632215,-175.95396094,0.00023999,2]
[318181328,1710102632225,-500.0,0.00023999,2]
[318181330,1710102632235,-364.38788803,0.00023999,2]
[318181332,1710102632245,-175.87314438,0.00023999,2]
[318181335,1710102632255,-11627.01051911,0.00024,10]
[318182382,1710102642963,-694.2496,0.00024,10]
[318182387,1710102642995,-447.33111604,0.00024,10]
[318182389,1710102643008,-22804.81756158,0.00024,10]
[318182687,1710102646087,-155.14894299,0.00023999,2]
[318182689,1710102646096,-259.96227363,0.00024,10]
[318189641,1710103103190,156.0,0.0002,30]
[318190085,1710103438855,11900.08,0.0002001,2]
[318190086,1710103555517,193.62521222,0.000189,2]
[318190142,1710103824399,151.75539254,0.0002,2]
[318190181,1710103832168,-155.10702385,0.00021387,2]
[318190184,1710103832178,-682.55292822,0.00021388,2]
[318190185,1710103832187,-155.10702385,0.00021389,2]
[318190187,1710103832195,-2327.5561349,0.0002139,2]
[318190189,1710103832204,-249.615299,0.00021499,2]
[318190191,1710103832214,-300.0,0.00021551,2]
[318190193,1710103832223,-23072.336889,0.00021552,2]
[318190195,1710103832231,-303.00646586,0.00021686,2]
[318190197,1710103832240,-1500.0,0.00022414,2]
[318190199,1710103832250,-252.25342214,0.00022903,2]
[318190201,1710103832259,-1500.0,0.00023245,2]
[318190204,1710103832269,-23802.09204768,0.000239,2]
[318190206,1710103832278,-193.62521222,0.000239,2]
[318190207,1710103832287,-1418.84877498,0.000239,2]
[318190209,1710103832296,-25000.0,0.00023969,15]
[318190211,1710103832305,-499.07008966,0.00023969,2]
[318190213,1710103832314,-500.0,0.00023969,2]
[318190215,1710103832323,-500.0,0.00023969,2]
[318190217,1710103832332,-509.31636641,0.00023969,2]
[318190219,1710103832341,-500.0,0.00023969,2]
[318190221,1710103832351,-367.90221597,0.00023969,2]
[318190223,1710103832362,-500.0,0.00023969,2]
[318190225,1710103832371,-500.0,0.00023969,2]
[318190228,1710103832381,-25000.0,0.0002397,10]
[318190229,1710103832390,-11109.36355128,0.0002398,8]
[318190804,1710103838159,-6668.01041841,0.0002398,8]
[318191270,1710103843172,-500.0,0.0002398,8]
[318191272,1710103843184,-21872.62603031,0.0002398,8]
[318191274,1710103843194,-21263.49461846,0.00023981,4]
[318193068,1710105032414,-168.20848489,0.00020106,2]
[318193070,1710105032423,-155.14428418,0.00020205,2]
[318193072,1710105032432,-500.0,0.00020205,2]
[318193074,1710105032442,-8228.19137012,0.00020206,2]
[318193076,1710105032453,-10865.26574815,0.00020206,2]
[318193113,1710105038310,-1414.41319977,0.00020206,2]
[318193115,1710105038320,-47656.7894357,0.00020206,2]
[318193117,1710105038330,-10587.8632199,0.00020207,2]
[318193119,1710105038339,-310.2497508,0.0002087,2]
[318193120,1710105038349,-176.41411874,0.00021,2]
[318193121,1710105038359,-206.21742824,0.00021881,2]
[318193122,1710105038369,-15838.05236157,0.00022,2]
[318193123,1710105038378,-206.94362384,0.00022903,2]
[318193124,1710105038387,-300.0,0.00023,10]
[318193125,1710105038397,-153.0,0.00023741,2]
[318193126,1710105038406,-213.88718129,0.00023899,2]
[318193127,1710105038415,-500.0,0.00023899,2]
[318193128,1710105038424,-413.16557471,0.00023899,2]
[318193129,1710105038433,-500.0,0.00023899,2]
[318193130,1710105038442,-500.0,0.00023899,2]
[318193131,1710105038453,-500.0,0.00023899,2]
[318193132,1710105038562,-500.0,0.00023899,2]
[318193133,1710105038572,-500.0,0.00023899,2]
[318193134,1710105038582,-500.0,0.00023899,2]
[318193135,1710105038593,-500.0,0.00023899,2]
[318193136,1710105038602,-19212.76877795,0.000239,2]
[318193146,1710105040343,-5126.8774467,0.000239,2]
[318193147,1710105040355,-2692.24424372,0.000239,2]
[318193207,1710105043316,-7020.30718518,0.000239,2]
[318193209,1710105043327,-2111.95236778,0.000239,2]
[318193214,1710105043371,-69695.78754243,0.000239,2]
[318193217,1710105043389,-2.17952284,0.000239,2]
[318193219,1710105043399,-1000.0,0.0002398,10]
[318193221,1710105043410,-3737.40538154,0.00023981,4]
[318193223,1710105043420,-206.57395922,0.00023982,3]
[318193582,1710105046554,-297.07324744,0.00023982,3]
[318193584,1710105046566,-504.7389635,0.00023982,3]
[318195768,1710106233693,-166.666666,0.00021586,2]
[318195770,1710106233704,-1727.11242722,0.00021975,2]
[318195773,1710106233717,-2214.72389153,0.00021975,2]
[318195775,1710106233727,-1129.1518949,0.00021976,2]
[318195776,1710106233737,-167.0,0.00022,2]
[318195778,1710106233746,-3144.75019936,0.00022027,2]
[318195780,1710106233757,-157.3796157,0.00022027,2]
[318195782,1710106233766,-13292.7173936,0.00022115,2]
[318195784,1710106233776,-167.0,0.00023014,2]
[318195786,1710106233786,-1744.87881549,0.000235,21]
[318195788,1710106233796,-500.0,0.00023981,2]
[318195789,1710106233806,-500.0,0.00023981,2]
[318195790,1710106233816,-500.0,0.00023981,2]
[318195791,1710106233825,-500.0,0.00023981,2]
[318195792,1710106233834,-500.0,0.00023981,2]
[318195793,1710106233843,-436.22163459,0.00023981,2]
[318195794,1710106233853,-7669.83226832,0.00023982,3]
[318195795,1710106233865,-1863.57471211,0.00023982,3]
[318196126,1710106240590,-524.0270224,0.00021975,2]
[318196127,1710106240599,-1492.05847605,0.00023982,3]
[318196142,1710106243527,-321.58043892,0.00023982,3]
[318196144,1710106243539,-886.027425,0.00023982,3]
[318196181,1710106246633,-734.96,0.00023982,3]
[318196285,1710107434651,-212.04319387,0.00021875,2]
[318196287,1710107434662,-191.54405702,0.00021876,2]
[318196289,1710107434672,-261.54715694,0.00021882,2]
[318196291,1710107434683,-743.30834454,0.00021957,2]
[318196293,1710107434696,-8840.28042326,0.00021957,2]
[318196295,1710107434705,-1304.20083968,0.00022,2]
[318196297,1710107434714,-194.0,0.00022,2]
[318196299,1710107434728,-157.3796157,0.00022191,2]
[318196301,1710107434738,-194.0,0.00022192,2]
[318196303,1710107434748,-194.0,0.00023014,2]
[318196306,1710107434758,-11126.51238493,0.00023927,2]
[318196308,1710107434768,-26023.58050944,0.00023982,3]
[318196310,1710107434777,-416.7236597,0.00023997,2]
[318196312,1710107434787,-436.35593955,0.00023997,2]
[318196313,1710107434796,-500.0,0.00023997,2]
[318196316,1710107434806,-449.55487972,0.00023997,2]
[318196318,1710107434816,-595.99810704,0.00023998,2]
[318196319,1710107434825,-184.24203833,0.00023998,2]
[318196321,1710107434834,-168.12891207,0.00023998,2]
[318196323,1710107434844,-340.22300168,0.00023998,2]
[318196325,1710107434853,-275.07064104,0.00023998,2]
[318196326,1710107434862,-7725.1586506,0.00023998,2]
[318196734,1710107439237,-3565.37319478,0.00023998,2]
[318196736,1710107439249,-9204.22621488,0.00023998,2]
[318196738,1710107439259,-3173.23994938,0.00023998,2]
[318196740,1710107439269,-42204.38253136,0.00023998,2]
[318196742,1710107439278,-3722.54158624,0.00023998,2]
[318196744,1710107439287,-218.17528736,0.00023998,2]
[318196746,1710107439297,-155.98713397,0.00023998,2]
[318196748,1710107439306,-507.48399774,0.00023998,2]
[318196750,1710107439316,-1668.30276011,0.00023998,2]
[318196752,1710107439326,-527.89842813,0.00023998,2]
[318196754,1710107439335,-744.20196551,0.00023998,2]
[318196756,1710107439345,-617.9347122,0.00023998,2]
[318196758,1710107439356,-307.57237006,0.00023998,2]
[318196760,1710107439365,-1601.93601941,0.00023998,2]
[318196762,1710107439373,-15253.15738836,0.00023999,2]
[318196764,1710107439382,-198.34320059,0.00024,3]
[318196766,1710107439392,-96987.27643232,0.00024,10]
[318196768,1710107439405,-319.2398709,0.00024,10]
[318196770,1710107439417,-356.75059371,0.00024,10]
[318196772,1710107439428,-36953.20564591,0.00024,10]
[318197196,1710107443815,-2204.10384147,0.00024,10]
[318197197,1710107443828,-358.13169284,0.00024,10]
[318197198,1710107443839,-3440.996515,0.00024,10]
[318197199,1710107443850,-15540.718912,0.00024,10]
[318197201,1710107443862,-8830.58596752,0.00024,10]
[318197203,1710107443874,-1449.07557445,0.00024,10]
[318197749,1710108632466,-237.90320136,0.00021,2]
[318197751,1710108632476,-314.60314374,0.000219,2]
[318197754,1710108632485,-1304.20083968,0.00022,2]
[318197757,1710108632494,-243.045374,0.00022588,2]
[318197760,1710108632505,-168.089218,0.00022778,2]
[318197763,1710108632514,-156.82278704,0.00023998,2]
[318197766,1710108632524,-191.27923877,0.00023998,2]
[318197768,1710108632534,-1471.81677667,0.00023998,2]
[318197771,1710108632545,-269.14973285,0.00023999,2]
[318197776,1710108632556,-192.66637702,0.00023999,2]
[318197779,1710108632567,-499.07008966,0.00023999,2]
[318197781,1710108632577,-500.0,0.00023999,2]
[318197785,1710108632588,-500.0,0.00023999,2]
[318197787,1710108632598,-356.52145649,0.00023999,2]
[318197789,1710108632609,-103230.97477591,0.00024,10]
[318199524,1710109188788,9210.0,0.0002001,2]
[318199532,1710109581247,397.59760304,0.000189,2]
[318199568,1710109833801,-321.93735775,0.0002022,2]
[318199570,1710109833810,-1114.04389177,0.00020221,2]
[318199572,1710109833820,-644.70219459,0.00021232,2]
[318199573,1710109833829,-1146.327523,0.00021904,2]
[318199575,1710109833837,-401.10924336,0.00021918,2]
[318199577,1710109833847,-209.92076,0.00021939,2]
[318199579,1710109833856,-216.0,0.00022,2]
[318199581,1710109833865,-1304.20083968,0.00022,2]
[318199583,1710109833874,-216.0,0.00022192,2]
[318199585,1710109833882,-1500.0,0.00022838,2]
[318199588,1710109833891,-176.5773955,0.00022903,2]
[318199591,1710109833901,-216.0,0.00023014,2]
[318199593,1710109833910,-153.0,0.000231,2]
[318199595,1710109833920,-6747.71079435,0.00023899,2]
[318199598,1710109833932,-343.85499428,0.00023899,2]
[318199853,1710109838546,-13409.74840052,0.00023899,2]
[318199854,1710109838555,-604.91770653,0.000239,2]
[318199855,1710109838564,-397.59760304,0.000239,2]
[318199856,1710109838573,-1418.84877498,0.000239,2]
[318199857,1710109838582,-332.14936715,0.00023998,2]
[318199858,1710109838591,-1668.30276011,0.00023998,2]
[318199859,1710109838600,-157.3240075,0.00023998,2]
[318199860,1710109838609,-337.88201453,0.00023998,2]
[318199862,1710109838618,-1000.0,0.00023999,6]
[318199863,1710109838627,-1000.0,0.00023999,13]
[318199865,1710109838636,-500.0,0.00023999,2]
[318199867,1710109838645,-367.90221597,0.00023999,2]
[318199869,1710109838654,-500.0,0.00023999,2]
[318199871,1710109838664,-500.0,0.00023999,2]
[318199873,1710109838673,-13846.44854666,0.00024,10]
[318199879,1710109838720,-34159.23666501,0.00024,10]
[318200035,1710109840182,-19293.16906965,0.00024,10]
[318200086,1710109843291,-6597.0,0.00024,10]
[318200110,1710109846359,-769.65,0.00024,10]
[318200130,1710109849946,7748.09122287,0.000189,2]
[318200201,1710111033429,-155.14583709,0.00021165,2]
[318200203,1710111033439,-221.319155,0.00021166,2]
[318200205,1710111033451,-100.61820275,0.00021166,2]
[318200207,1710111033461,-175.654493,0.0002117,2]
[318200209,1710111033470,-250.0,0.00021455,2]
[318200212,1710111033480,-281.855707,0.00021536,2]
[318200214,1710111033490,-234.63161744,0.000219,2]
[318200216,1710111033499,-209.92076,0.00021918,2]
[318200217,1710111033509,-315.0,0.00022,2]
[318200220,1710111033518,-1304.20083968,0.0002211,2]
[318200223,1710111033537,-266.2410044,0.00022111,2]
[318200225,1710111033550,-315.0,0.00022192,2]
[318200227,1710111033560,-473.58930702,0.00022903,2]
[318200229,1710111033570,-315.0,0.00023014,2]
[318200231,1710111033580,-24552.31293817,0.000239,2]
[318200233,1710111033592,-384.78894602,0.000239,2]
[318200235,1710111033602,-15.26719648,0.00023975,2]
[318200435,1710111038349,-2974.61528,0.00023975,2]
[318200437,1710111038363,-869.03310186,0.00023975,2]
[318200440,1710111038376,-1426.53353647,0.00023975,2]
[318200904,1710111043318,-2098.21101078,0.000239,2]
[318200906,1710111043331,-2958.69092513,0.00023975,2]
[318200908,1710111043341,-1668.03514243,0.00023998,2]
[318200910,1710111043350,-310.12557478,0.00023998,2]
[318200912,1710111043359,-157.29568872,0.00023998,2]
[318200914,1710111043368,-155.83489796,0.00023998,2]
[318200916,1710111043378,-703.45953046,0.00023998,2]
[318200918,1710111043389,-155.28108391,0.00023998,2]
[318200920,1710111043399,-155.21292275,0.00023998,2]
[318200922,1710111043411,-155.18942404,0.00023998,2]
[318200924,1710111043423,-155.68273152,0.00023998,2]
[318200926,1710111043432,-155.22652708,0.00023998,2]
[318200928,1710111043442,-160.19387848,0.00023998,2]
[318200930,1710111043451,-538.21052792,0.00023999,2]
[318200932,1710111043462,-417.26523691,0.00023999,2]
[318200934,1710111043472,-500.0,0.00023999,2]
[318200936,1710111043481,-500.0,0.00023999,2]
[318200938,1710111043492,-500.0,0.00023999,2]
[318200940,1710111043503,-500.0,0.00023999,2]
[318200943,1710111043512,-500.0,0.00023999,2]
[318200944,1710111043522,-500.0,0.00023999,2]
[318200946,1710111043532,-500.0,0.00023999,2]
[318200948,1710111043542,-500.0,0.00023999,2]
[318200950,1710111043552,-379.90037217,0.00023999,2]
[318200952,1710111043561,-500.0,0.00023999,2]
[318200955,1710111043571,-500.0,0.00023999,2]
[318200957,1710111043581,-500.0,0.00023999,2]
[318200959,1710111043591,-500.0,0.00023999,2]
[318200960,1710111043600,-312.84550812,0.00023999,7]
[318200962,1710111043610,-3631.10881635,0.00024,10]
[318200964,1710111043621,-7409.94128919,0.00024,10]
[318200966,1710111043633,-348.89256572,0.00024,10]
[318200968,1710111043645,-6974.40693846,0.00024,10]
[318200970,1710111043656,-906.10743428,0.00024,10]
[318201093,1710111263171,154.92253773,0.000176,2]
[318201095,1710111483420,15949.72744915,0.000176,2]
[318201096,1710111501363,15949.72744915,0.000176,2]
[318201097,1710111519405,15949.72744915,0.000176,2]
[318201098,1710111537565,2336.47431857,0.000176,2]
[318201107,1710111837455,3870.49514657,0.000176,2]
[318201109,1710111991466,397.84930615,0.000189,2]
[318201239,1710112238268,-321.93735775,0.00021999,2]
[318201240,1710112238277,-20.06264225,0.00022,2]
[318201279,1710112238937,-10674.16000055,0.00022,2]
[318201281,1710112238948,-1000.0,0.00022,2]
[318201283,1710112238960,-2510.70026131,0.00022,2]
[318201284,1710112238972,-8600.66801329,0.00022,2]
[318201285,1710112238982,-2559.40633787,0.00022,2]
[318201286,1710112238992,-197.0,0.00022,2]
[318201287,1710112239003,-1304.20083968,0.00022,2]
[318201289,1710112239012,-22820.7824713,0.00022055,2]
[318201290,1710112239026,-1024.25,0.00022055,2]
[318201291,1710112239039,-1054.9675287,0.00022055,2]
[318201292,1710112239050,-197.0,0.00022192,2]
[318201293,1710112239060,-171.255975,0.00022389,2]
[318201294,1710112239070,-500.0,0.00022596,2]
[318201295,1710112239082,-208.87781913,0.00022596,2]
[318201296,1710112239092,-842.76407208,0.00022597,2]
[318201309,1710112240508,-3075.83192515,0.00022597,2]
[318201310,1710112240518,-505.68398876,0.00022903,3]
[318201312,1710112240529,-4865.76551844,0.00022903,3]
[318201313,1710112240538,-197.0,0.00023014,2]
[318201314,1710112240547,-397.84930615,0.000239,2]
[318201315,1710112240557,-1814.09246434,0.000239,2]
[318201316,1710112240567,-215.57961549,0.00023998,2]
[318201317,1710112240576,-155.31781498,0.00023998,2]
[318201318,1710112240584,-7899.56120569,0.00023998,2]
[318201319,1710112240593,-314.82032458,0.00023998,2]
[318201320,1710112240602,-181.94140819,0.00023999,2]
[318201321,1710112240611,-3404.96977603,0.00023999,2]